bitfinex/quotes_ETHUSD_20250604
["timestamp","ask_amount","ask_price","bid_price","bid_amount"]
[1749042101281,1.31193107,2615.9,2615.8,1.647]
[1749042102275,1.31193107,2615.9,2615.8,7.93]
[1749042102484,1.31193107,2615.9,2615.7,8.243]
[1749042102627,1.31193107,2615.9,2615.8,7.93]
[1749042104008,1.31193107,2615.9,2615.7,8.243]
[1749042104211,1.31193107,2615.9,2615.8,7.93]
[1749042107808,1.31193107,2615.9,2615.7,8.243]
[1749042108136,1.31193107,2615.9,2615.8,7.93]
[1749042109215,1.31193107,2615.9,2615.8,1.647]
[1749042109413,1.31193107,2615.9,2615.7,8.243]
[1749042109600,1.31193107,2615.9,2615.8,7.93]
[1749042110121,1.31193107,2615.9,2615.7,8.243]
[1749042110122,1.2455,2615.8,2615.7,8.243]
[1749042110354,1.2455,2615.8,2615.7,9.89]
[1749042110548,0.55,2615.7,2615.4,1.647]
[1749042110698,1.2565,2615.4,2614.5,8.244]
[1749042110902,1.2565,2615.1,2614.6,7.93]
[1749042111330,1.2565,2615.1,2614.7,7.93]
[1749042111531,2.11057842,2615.1,2614.7,1.647]
[1749042111841,2.11057842,2615.1,2614.5,8.244]
[1749042111842,1.2565,2615.0,2614.8,1.647]
[1749042112928,1.2565,2615.0,2614.9,6.283]
[1749042113127,1.2565,2615.0,2614.8,1.647]
[1749042113347,1.2565,2615.0,2613.8,43.82577773]
[1749042113529,1.2565,2615.0,2614.0,40.0]
[1749042113737,1.2565,2615.0,2613.9,30.0]
[1749042114110,1.2565,2615.0,2614.1,23.423017]
[1749042114433,1.2565,2615.0,2614.0,9.892]
[1749042114434,1.2565,2615.0,2614.3,40.0]
[1749042114742,1.2565,2615.3,2614.5,40.0]
[1749042114947,1.2565,2615.3,2614.7,25.891142]
[1749042115151,1.2565,2615.3,2614.7,10.23853]
[1749042115509,1.2565,2615.3,2614.9,15.23943]
[1749042115705,1.2565,2615.3,2614.8,10.0]
[1749042116045,1.2565,2615.3,2614.9,1.646]
[1749042116249,1.2017,2615.1,2615.0,7.93]
[1749042116648,1.2017,2615.1,2614.0,8.245]
[1749042116835,1.2017,2615.1,2614.2,6.41916]
[1749042117024,1.2017,2615.1,2614.3,10.0]
[1749042117219,1.2017,2615.1,2614.4,10.897368]
[1749042117421,0.20557784,2615.0,2614.5,0.42952927]
[1749042117624,0.20557784,2615.0,2614.5,0.21476473]
[1749042117886,0.20557784,2615.0,2614.6,0.21476445]
[1749042118007,0.20557784,2615.0,2614.7,1.86076429]
[1749042118208,0.20557784,2615.0,2614.8,6.284]
[1749042118448,0.20557784,2615.0,2614.5,0.21476473]
[1749042118656,0.20557784,2615.0,2614.6,7.929]
[1749042119444,0.20557784,2615.0,2614.5,0.21476473]
[1749042119651,1.2197,2614.9,2614.6,7.93]
[1749042119856,1.2197,2614.9,2614.7,6.284]
[1749042121259,1.2197,2614.9,2614.5,0.21476473]
[1749042121673,1.2197,2614.9,2614.6,7.93]
[1749042121968,1.2197,2614.9,2614.7,7.93]
[1749042122171,2.07009842,2614.9,2614.7,7.93]
[1749042123465,1.2197,2614.9,2614.7,7.93]
[1749042123871,1.2841,2615.3,2614.9,10.0]
[1749042124167,1.2841,2615.3,2614.9,8.340857]
[1749042124466,1.2841,2615.3,2614.8,9.484857]
[1749042124868,1.2841,2615.3,2614.8,7.836626]
[1749042125085,1.2841,2615.3,2614.9,7.93]
[1749042125240,1.2622,2615.1,2615.0,7.93]
[1749042125782,8.54648422,2615.1,2615.0,7.93]
[1749042127040,1.283,2615.0,2614.5,0.21476473]
[1749042127242,1.283,2615.0,2614.6,7.93]
[1749042127661,1.283,2615.0,2614.7,6.283]
[1749042127851,2.22541226,2615.0,2614.7,6.283]
[1749042130187,2.22541226,2615.0,2614.8,0.21476882]
[1749042130484,2.22541226,2615.0,2614.7,6.283]
[1749042130783,1.283,2615.0,2614.8,0.21476439]
[1749042130929,1.283,2615.0,2614.7,6.283]
[1749042131380,1.283,2615.0,2614.8,0.2147678]
[1749042131543,1.283,2615.0,2614.7,6.283]
[1749042132377,1.283,2615.0,2614.8,11.47357]
[1749042132528,1.2826,2615.4,2614.8,11.47357]
[1749042132733,1.2826,2615.4,2614.7,6.283]
[1749042132734,1.2826,2615.4,2614.9,10.0]
[1749042132946,1.2826,2615.4,2614.8,10.0]
[1749042133242,1.2826,2615.4,2614.6,1.646]
[1749042133574,8.56688422,2615.4,2614.7,6.283]
[1749042134068,8.56688422,2615.4,2614.5,0.21476473]
[1749042134371,9.42357264,2615.4,2614.8,7.929]
[1749042135526,1.3041,2615.3,2614.9,7.929]
[1749042136141,1.3041,2615.3,2614.5,0.21476473]
[1749042136347,1.3041,2615.3,2614.6,7.929]
[1749042138581,1.3041,2615.3,2614.6,1.646]
[1749042138757,1.3079,2615.0,2614.7,6.283]
[1749042139275,3.50493319,2614.9,2614.8,7.929]
[1749042139856,3.50493319,2614.9,2614.0,8.245]
[1749042140057,3.50493319,2614.7,2614.2,10.0]
[1749042140589,3.50493319,2614.7,2614.2,12.05565]
[1749042140756,3.50493319,2614.7,2614.1,11.646]
[1749042141092,3.50493319,2614.7,2614.2,16.283]
[1749042141249,3.50493319,2614.7,2614.4,10.0]
[1749042141451,3.50493319,2614.7,2614.5,6.283]
[1749042141990,3.50493319,2614.7,2614.6,7.929]
[1749042142196,5.24853651,2614.7,2613.7,9.366289]
[1749042142376,3.50493319,2614.3,2613.8,16.176]
[1749042142687,4.77063319,2614.3,2614.0,10.0]
[1749042142875,4.77063319,2614.3,2613.9,5.835481]
[1749042143185,4.77063319,2614.3,2613.8,16.176]
[1749042143186,3.50493319,2614.1,2614.0,1.646]
[1749042143397,3.50493319,2614.1,2614.0,7.929]
[1749042145081,3.50493319,2614.1,2614.0,1.646]
[1749042145281,9.08871685,2614.1,2614.0,1.646]
[1749042145883,9.08871685,2614.1,2614.0,7.929]
[1749042146267,9.08871685,2614.1,2613.8,8.247]
[1749042146669,9.08871685,2614.1,2613.9,7.928]
[1749042147007,9.08871685,2614.1,2614.0,1.645]
[1749042147199,9.08871685,2614.1,2614.0,7.928]
[1749042147575,9.08871685,2614.1,2613.8,8.247]
[1749042147774,9.08871685,2614.1,2613.9,1.645]
[1749042148098,9.08871685,2614.1,2614.0,6.283]
[1749042148723,1.3159,2614.1,2614.0,6.283]
[1749042149007,1.2868,2614.6,2614.1,10.0]
[1749042149170,1.2868,2614.6,2614.0,6.283]
[1749042150017,1.3406,2614.3,2614.0,6.283]
[1749042150212,2.20423535,2614.3,2613.8,8.247]
[1749042150376,7.29575353,2614.1,2613.9,7.928]
[1749042150576,7.29575353,2614.1,2613.9,1.645]
[1749042150775,7.29575353,2614.1,2614.0,6.283]
[1749042152080,7.29575353,2614.1,2614.0,1.645]
[1749042153172,7.29575353,2614.1,2614.0,7.929]
[1749042155444,1.3406,2614.3,2614.0,7.929]
[1749042155604,1.2664,2614.5,2614.0,7.929]
[1749042155820,7.29575353,2614.7,2614.1,5.084642]
[1749042155980,7.29575353,2614.7,2614.0,7.929]
[1749042157170,7.29575353,2614.7,2614.1,4.759062]
[1749042157377,7.29575353,2614.7,2614.2,10.0]
[1749042158009,7.29575353,2614.7,2614.1,8.57301]
[1749042158170,7.29575353,2614.7,2614.0,7.929]
[1749042158371,7.29575353,2614.7,2614.2,10.0]
[1749042158588,7.29575353,2614.7,2614.1,6.31701]
[1749042158812,7.29575353,2614.7,2614.2,10.0]
[1749042159031,7.29575353,2614.7,2614.1,6.974896]
[1749042159213,7.29575353,2614.7,2614.2,10.0]
[1749042159380,7.29575353,2614.7,2614.1,6.974896]
[1749042159581,7.29575353,2614.7,2614.0,7.929]
[1749042160717,7.29575353,2614.7,2614.2,10.0]
[1749042160918,7.29575353,2614.7,2614.1,4.324773]
[1749042161217,7.29575353,2614.7,2614.2,10.0]
[1749042161419,7.29575353,2614.7,2614.0,7.929]
[1749042161420,8.11758059,2614.7,2614.0,7.929]
[1749042161916,8.11758059,2614.7,2613.6,8.249]
[1749042161917,7.29575353,2614.4,2614.1,1.645]
[1749042162118,7.29575353,2614.4,2614.1,7.928]
[1749042162427,1.3459,2614.2,2614.1,7.928]
[1749042164616,8.61675353,2614.4,2614.1,7.928]
[1749042167194,3.50650123,2614.2,2614.1,7.928]
[1749042169079,3.50650123,2614.2,2613.6,8.249]
[1749042169309,3.50650123,2614.2,2613.8,30.0]
[1749042170106,3.50650123,2614.3,2613.8,30.0]
[1749042171281,3.50650123,2614.3,2613.9,6.282]
[1749042171480,3.50650123,2614.3,2614.0,10.0]
[1749042171737,3.50650123,2614.3,2614.1,10.0]
[1749042172026,3.50650123,2614.3,2614.1,1.645]
[1749042172187,3.50650123,2614.3,2614.2,1.645]
[1749042172984,1.2786,2614.5,2614.2,1.645]
[1749042173222,3.50650123,2614.4,2614.2,1.645]
[1749042173411,3.50650123,2614.4,2614.3,6.282]
[1749042175068,3.98501135,2614.4,2613.8,10.0]
[1749042175257,3.50650123,2614.2,2613.9,10.0]
[1749042175424,3.50650123,2614.2,2613.9,7.927]
[1749042176673,3.50650123,2614.2,2614.0,7.925]
[1749042177769,3.50650123,2614.2,2613.6,8.249]
[1749042177770,1.2263,2614.1,2613.6,8.249]
[1749042178006,0.47328012,2614.0,2613.7,7.925]
[1749042178208,1.2263,2614.1,2613.7,7.925]
[1749042178974,3.50650123,2613.8,2613.6,8.249]
[1749042179177,3.50650123,2613.8,2613.7,1.644]
[1749042179711,4.05650123,2613.8,2613.7,1.644]
[1749042180112,5.31940123,2613.8,2613.7,1.644]
[1749042180418,6.20199148,2613.8,2613.7,1.644]
[1749042180913,4.38909148,2613.8,2613.6,8.249]
[1749042181212,1.3527,2613.7,2613.6,9.893]
[1749042182116,4.85920123,2613.7,2613.6,9.893]
[1749042182307,3.50650123,2613.7,2613.6,9.893]
[1749042182703,3.50650123,2613.7,2613.6,8.249]
[1749042182922,5.33680135,2613.7,2613.6,8.249]
[1749042183121,5.33680135,2613.7,2613.6,16.175]
[1749042184513,1.3496,2613.7,2613.6,1.644]
[1749042184825,4.85610123,2613.7,2613.6,1.644]
[1749042184994,3.50650123,2613.7,2613.6,1.644]
[1749042185622,3.50650123,2613.7,2613.6,7.926]
[1749042186548,3.50650123,2613.7,2613.1,8.251]
[1749042186774,0.48359012,2613.7,2613.6,1.644]
[1749042186914,1.3294,2613.9,2613.6,1.644]
[1749042188023,3.50650123,2613.7,2613.6,1.644]
[1749042188665,3.50650123,2613.7,2613.1,8.251]
[1749042188869,3.50650123,2614.0,2613.6,1.644]
[1749042189032,3.50650123,2614.0,2613.6,7.926]
[1749042189356,1.222,2613.8,2613.6,7.926]
[1749042190051,3.50650123,2613.7,2613.5,6.282]
[1749042190351,4.77810123,2613.6,2613.5,6.282]
[1749042190517,4.77810123,2613.6,2613.5,7.926]
[1749042191150,12.77810123,2613.6,2613.1,8.251]
[1749042191351,12.77810123,2613.6,2612.5,8.252]
[1749042191352,1.2596,2613.1,2612.5,8.252]
[1749042191656,3.50650123,2612.7,2612.6,7.925]
[1749042192238,3.50650123,2612.7,2612.5,8.252]
[1749042192440,3.50650123,2612.7,2612.6,7.926]
[1749042192940,1.2596,2613.1,2612.6,7.926]
[1749042192941,3.50650123,2612.9,2612.6,7.926]
[1749042193258,3.50650123,2613.3,2612.8,17.12807]
[1749042193420,3.50650123,2613.3,2612.8,7.12807]
[1749042193757,1.27781012,2613.5,2613.0,34.015883]
[1749042193758,3.50650123,2613.5,2613.0,34.015883]
[1749042194055,3.50650123,2613.5,2613.0,21.617729]
[1749042194754,3.50650123,2613.5,2613.0,20.693767]
[1749042194958,3.50650123,2613.7,2613.0,20.693767]
[1749042195312,1.2749,2613.8,2613.0,20.693767]
[1749042195854,7.29681887,2614.1,2613.2,34.015883]
[1749042196034,7.29681887,2614.1,2613.4,24.198676]
[1749042196220,7.29681887,2614.1,2613.4,14.198676]
[1749042196413,8.15578076,2614.1,2613.4,14.198676]
[1749042196617,8.15578076,2614.1,2613.4,12.143321]
[1749042196822,8.15578076,2614.1,2613.4,11.339921]
[1749042197271,1.2928,2614.3,2613.6,10.0]
[1749042197451,1.2928,2614.3,2613.5,0.1002]
[1749042198229,7.29681887,2614.1,2613.5,0.1002]
[1749042198655,8.58961887,2614.3,2613.5,0.1002]
[1749042199259,7.29681887,2614.3,2613.6,24.015883]
[1749042199466,7.29681887,2614.3,2613.8,22.978181]
[1749042199673,7.29681887,2614.3,2613.9,1.644]
[1749042199843,8.66471887,2614.6,2614.0,6.281]
[1749042200769,7.29681887,2614.3,2614.0,6.281]
[1749042205035,7.29681887,2614.3,2614.1,0.1002]
[1749042206075,7.29681887,2614.3,2614.2,6.279]
[1749042208476,7.29681887,2614.3,2612.9,11.54966493]
[1749042208773,7.29681887,2614.3,2614.0,8.25]
[1749042208980,7.29681887,2614.3,2614.1,1.642]
[1749042209780,7.29681887,2614.3,2614.2,6.279]
[1749042210490,7.29681887,2614.3,2613.3,3.82649429]
[1749042210491,7.29681887,2614.3,2613.2,24.015883]
[1749042210691,7.29681887,2614.6,2613.4,37.84224491]
[1749042210857,7.29681887,2614.6,2613.5,24.015883]
[1749042211481,7.29681887,2614.3,2613.4,15.908118]
[1749042211644,7.29681887,2614.0,2613.5,6.279]
[1749042212299,0.02,2614.9,2613.7,10.0]
[1749042212300,7.29681887,2614.3,2613.7,10.0]
[1749042212596,7.29681887,2614.3,2613.9,10.0]
[1749042212746,7.29681887,2614.3,2613.2,3.82665431]
[1749042213076,7.29681887,2614.3,2613.4,24.015883]
[1749042214066,7.29681887,2614.3,2613.6,24.015883]
[1749042214269,1.2659,2614.5,2613.6,24.015883]
[1749042214844,7.29681887,2614.6,2613.6,24.015883]
[1749042215378,3.50591057,2614.4,2613.6,24.015883]
[1749042215698,3.50591057,2614.4,2613.6,16.420484]
[1749042215858,3.50591057,2614.6,2613.5,13.71818334]
[1749042216047,3.50591057,2614.6,2613.6,16.420484]
[1749042216442,3.50591057,2614.6,2613.7,16.420484]
[1749042217281,3.50591057,2614.6,2613.6,16.420484]
[1749042217442,3.50591057,2614.6,2613.7,16.420484]
[1749042218567,3.50591057,2614.6,2613.6,16.420484]
[1749042218770,3.50591057,2614.4,2613.6,16.420484]
[1749042218969,3.50591057,2614.4,2613.8,10.96578]
[1749042219291,3.50591057,2614.4,2613.8,9.900332]
[1749042219959,3.50591057,2614.4,2614.0,5.457877]
[1749042220146,3.50591057,2614.4,2614.1,11.642]
[1749042220347,3.50591057,2614.4,2614.1,1.642]
[1749042221487,4.76661057,2614.2,2613.7,10.0]
[1749042221658,4.76661057,2614.2,2613.5,8.25]
[1749042221659,3.50591057,2613.8,2613.5,8.25]
[1749042221865,3.50591057,2613.6,2613.5,8.25]
[1749042222064,3.50591057,2613.6,2613.5,9.892]
[1749042222400,3.50591057,2613.6,2613.5,16.169]
[1749042223173,8.69890484,2613.8,2613.5,16.169]
[1749042223380,9.56879532,2613.8,2613.5,16.169]
[1749042225112,9.56879532,2613.8,2613.5,9.892]
[1749042225286,9.56879532,2613.8,2613.6,6.277]
[1749042227868,8.69890484,2613.8,2613.6,6.277]
[1749042228210,1.3754,2614.1,2613.7,11.688944]
[1749042228377,1.3754,2614.1,2613.8,10.0]
[1749042228575,1.3754,2614.1,2613.7,16.125642]
[1749042228776,1.3754,2614.1,2613.8,7.919]
[1749042229618,1.3754,2614.1,2613.8,17.919]
[1749042229813,1.3754,2614.1,2613.5,8.25]
[1749042230013,1.3754,2614.1,2613.9,7.919]
[1749042236147,1.3754,2614.1,2613.9,1.642]
[1749042236343,1.3754,2614.1,2614.0,6.276]
[1749042237673,2.24264048,2614.1,2613.5,8.25]
[1749042237877,1.3754,2614.1,2614.0,1.642]
[1749042238377,1.3754,2614.1,2614.0,7.917]
[1749042242399,1.4003,2614.4,2614.0,7.917]
[1749042244267,7.29700484,2614.2,2614.0,7.917]
[1749042245156,3.50705036,2614.1,2614.0,7.917]
[1749042246298,1.3956,2614.0,2613.5,8.25]
[1749042246499,3.50705036,2613.8,2613.6,7.916]
[1749042246998,3.50705036,2613.8,2613.5,8.25]
[1749042247156,3.50705036,2613.8,2613.6,7.916]
[1749042247857,3.50705036,2614.0,2613.6,7.916]
[1749042248784,4.78865036,2614.2,2613.7,0.0757]
[1749042249155,3.50705036,2614.0,2613.7,0.0757]
[1749042249783,3.50705036,2614.0,2613.8,1.641]
[1749042250204,7.01410072,2614.0,2613.9,1.641]
[1749042250404,4.91855036,2614.0,2613.9,1.641]
[1749042250608,5.4104054,2614.0,2613.9,1.641]
[1749042251009,5.9604054,2614.0,2613.9,1.641]
[1749042251208,8.05595576,2614.0,2613.7,8.25]
[1749042251543,4.79755036,2613.8,2613.7,8.25]
[1749042251744,5.34755036,2613.8,2613.7,8.25]
[1749042251945,0.55,2613.7,2613.5,1.641]
[1749042252225,4.78995036,2613.6,2613.5,1.641]
[1749042252402,5.33995036,2613.6,2613.5,1.641]
[1749042253032,1.3688,2613.4,2612.2,16.212349]
[1749042253298,7.3013755,2613.0,2612.4,10.0]
[1749042253447,8.5613755,2613.0,2612.4,10.0]
[1749042253744,8.5613755,2613.0,2612.5,6.275]
[1749042254041,8.5613755,2613.0,2612.7,10.0]
[1749042254205,8.5613755,2613.0,2612.5,14.526]
[1749042254404,8.5613755,2613.0,2612.6,7.916]
[1749042254604,8.5613755,2613.0,2612.7,10.0]
[1749042255550,8.5613755,2613.0,2612.8,6.275]
[1749042256448,8.5613755,2613.0,2612.9,6.275]
[1749042256850,9.41751305,2613.0,2612.5,8.251]
[1749042257061,9.41751305,2613.0,2612.6,7.917]
[1749042257062,8.5613755,2613.0,2612.6,7.917]
[1749042257263,7.3013755,2612.7,2612.5,8.251]
[1749042257471,7.3013755,2612.7,2612.6,7.917]
[1749042258740,7.3013755,2612.7,2612.6,1.641]
[1749042259065,1.342,2612.6,2612.5,8.251]
[1749042259270,1.342,2612.6,2612.5,16.168]
[1749042259562,1.342,2612.6,2612.5,9.892]
[1749042259725,1.342,2612.6,2612.5,16.168]
[1749042259925,1.342,2612.6,2612.5,9.892]
[1749042260159,1.342,2612.6,2612.5,16.167]
[1749042260471,1.342,2612.6,2612.1,0.02]
[1749042260472,2.20633755,2612.6,2612.1,0.02]
[1749042260686,2.68663755,2612.6,2612.5,1.641]
[1749042260832,1.8223,2612.6,2612.5,1.641]
[1749042261521,1.8223,2612.5,2612.3,1.641]
[1749042261722,9.1120755,2612.4,2612.3,1.641]
[1749042263937,0.55,2612.1,2611.5,11.36150827]
[1749042264154,7.3013755,2611.7,2611.6,1.641]
[1749042265164,7.3013755,2611.7,2611.5,11.36150827]
[1749042265373,1.9262,2611.6,2611.5,1.71080827]
[1749042265577,9.2275755,2611.6,2611.5,1.71080827]
[1749042265762,0.78513755,2612.3,2611.5,1.71080827]
[1749042265763,7.3013755,2611.8,2611.5,1.71080827]
[1749042265930,7.3013755,2611.8,2611.5,7.98780827]
[1749042266129,7.3013755,2611.8,2611.5,1.71080827]
[1749042266365,7.3013755,2611.8,2611.6,6.277]
[1749042266568,7.3013755,2611.9,2611.6,6.277]
[1749042266729,7.3013755,2611.9,2611.7,1.641]
[1749042267427,8.17018305,2611.9,2611.6,7.918]
[1749042269369,8.17018305,2611.9,2611.6,1.641]
[1749042269671,8.17018305,2611.9,2611.7,6.278]
[1749042270368,7.3013755,2611.9,2611.7,6.278]
[1749042271147,1.3867,2612.1,2611.7,6.278]
[1749042271344,7.3013755,2612.0,2611.7,6.278]
[1749042271748,7.3013755,2612.0,2611.6,1.641]
[1749042271963,7.3013755,2611.7,2611.6,1.641]
[1749042272170,7.3013755,2611.7,2611.6,7.918]
[1749042272974,7.3013755,2611.7,2611.5,1.71080827]
[1749042273269,1.9196,2611.6,2611.5,1.71080827]
[1749042273470,1.9196,2611.6,2611.1,0.02161438]
[1749042273471,17.2209755,2611.2,2611.1,0.02161438]
[1749042274269,1.3696,2611.6,2611.1,0.02161438]
[1749042274579,7.3013755,2611.7,2611.2,7.923]
[1749042275187,7.3013755,2611.7,2611.1,0.02161438]
[1749042275391,1.3696,2612.0,2610.1,0.02]
[1749042275392,8.55,2611.1,2610.1,0.02]
[1749042275586,7.3013755,2610.8,2610.1,0.02]
[1749042275882,0.55,2611.1,2610.2,7.888668]
[1749042276085,7.8513755,2611.1,2610.2,7.888668]
[1749042276261,7.3013755,2610.7,2610.3,7.968]
[1749042276459,7.3013755,2610.7,2610.4,7.968]
[1749042276660,7.3013755,2610.7,2610.5,7.968]
[1749042276862,7.3013755,2610.8,2610.5,7.968]
[1749042277263,7.3013755,2610.8,2610.6,7.967]
[1749042277986,7.3013755,2610.8,2610.7,6.329]
[1749042278365,0.55,2610.7,2610.6,7.968]
[1749042278563,0.55,2610.7,2610.6,1.64]
[1749042278767,0.55,2610.7,2610.1,0.02]
[1749042278954,7.3013755,2610.5,2610.2,7.971]
[1749042280013,0.55,2610.3,2610.1,0.02]
[1749042280219,8.6618755,2610.2,2610.1,0.02]
[1749042280717,8.6618755,2610.2,2610.1,1.661]
[1749042280852,0.44789052,2611.9,2610.2,9.206168]
[1749042281184,1.3481,2611.3,2610.4,7.888668]
[1749042281492,1.3481,2611.3,2610.2,1.3175]
[1749042281493,7.3013755,2611.5,2610.8,10.0]
[1749042281656,7.3013755,2611.5,2610.9,1.641]
[1749042282794,7.3013755,2611.5,2610.7,10.0]
[1749042282795,7.3013755,2611.2,2611.0,7.996]
[1749042283493,7.8513755,2611.2,2611.0,7.996]
[1749042283792,7.8513755,2611.2,2611.1,0.21507994]
[1749042284091,7.8513755,2611.2,2611.0,7.996]
[1749042284492,7.8513755,2611.2,2611.1,0.21507963]
[1749042284660,7.8513755,2611.2,2611.0,7.996]
[1749042285687,7.8513755,2611.2,2611.0,1.641]
[1749042285891,7.8513755,2611.2,2611.1,6.56607988]
[1749042286093,7.8513755,2611.2,2611.1,6.351]
[1749042286292,7.8513755,2611.2,2611.1,7.991]
[1749042287287,7.3013755,2611.2,2611.1,7.991]
[1749042288173,7.8513755,2611.5,2611.1,8.20607923]
[1749042288975,7.8513755,2611.2,2611.1,0.21507923]
[1749042289217,8.6792755,2611.3,2611.1,0.21507923]
[1749042290208,9.2292755,2611.3,2611.1,0.21507923]
[1749042290408,7.8513755,2611.3,2611.1,0.21507923]
[1749042291111,7.3013755,2611.3,2611.1,0.21507923]
[1749042291812,7.3013755,2611.3,2611.2,6.346]
[1749042293288,1.3474,2611.5,2611.2,6.346]
[1749042293913,0.45051948,2612.2,2611.2,6.346]
[1749042293914,1.4148,2611.8,2611.2,6.346]
[1749042294112,7.3013755,2611.9,2611.3,1.3144]
[1749042294314,1.4148,2612.0,2611.4,1.641]
[1749042294720,7.3013755,2611.8,2611.4,1.641]
[1749042295519,7.3013755,2611.5,2611.1,1.53637923]
[1749042295704,7.3013755,2611.5,2611.2,7.987]
[1749042298835,7.3013755,2611.5,2611.3,10.0]
[1749042299616,0.55,2611.9,2611.3,10.0]
[1749042299617,7.3013755,2611.8,2611.3,10.0]
[1749042300030,7.80642307,2611.8,2611.2,7.987]
[1749042300584,7.3013755,2611.5,2611.1,1.53637923]
[1749042300787,7.3013755,2611.5,2611.2,8.011]
[1749042302124,1.906,2611.4,2611.2,1.674]
[1749042302324,2.63613755,2611.4,2611.2,1.674]
[1749042302990,2.08613755,2611.4,2611.2,1.674]
[1749042303194,7.3013755,2611.6,2611.2,3.0156]
[1749042304702,7.3013755,2611.6,2611.3,0.21505032]
[1749042305038,7.3013755,2611.6,2611.2,3.0156]
[1749042305238,3.51402402,2611.5,2611.2,3.0156]
[1749042305798,3.51402402,2611.3,2611.2,3.0156]
[1749042306026,3.51402402,2611.3,2611.2,9.3496]
[1749042306612,3.51402402,2611.3,2611.1,0.21507923]
[1749042306808,3.51402402,2611.3,2611.2,8.007]
[1749042307009,3.51402402,2611.3,2611.2,8.22206527]
[1749042307213,3.51402402,2611.3,2611.2,8.007]
[1749042308652,3.51402402,2611.3,2611.2,8.006]
[1749042309151,0.55,2611.2,2611.1,0.21507923]
[1749042309293,0.55,2611.2,2611.1,1.88907923]
[1749042309495,1.8573,2611.2,2611.1,1.88907923]
[1749042311249,9.16931643,2611.2,2611.1,1.88907923]
[1749042312025,0.4848624,2611.3,2611.1,1.88907923]
[1749042312229,0.77968788,2611.3,2610.2,7.888668]
[1749042312432,0.55,2608.7,2608.1,8.56272971]
[1749042312750,0.55,2608.9,2608.3,10.0]
[1749042312895,8.0,2609.3,2608.3,10.0]
[1749042313096,0.55,2608.7,2608.3,10.0]
[1749042313301,0.55,2608.7,2608.1,8.56272971]
[1749042313528,0.55,2608.7,2608.4,1.94]
[1749042313774,7.31201643,2608.5,2608.1,1.00563708]
[1749042313970,0.55,2608.5,2608.4,1.94]
[1749042314175,0.55,2608.4,2608.1,1.00563708]
[1749042314330,0.24452,2608.4,2608.3,1.94]
[1749042314537,0.24452,2608.4,2608.1,2.94563708]
[1749042315168,0.24452,2608.4,2608.1,1.00563708]
[1749042315368,7.86201643,2608.2,2608.1,1.00563708]
[1749042316171,1.3636,2608.2,2607.8,0.15472454]
[1749042316467,1.3636,2608.1,2606.4,2.018]
[1749042316668,7.31201643,2607.7,2606.4,2.018]
[1749042316867,0.55,2607.6,2607.2,2.018]
[1749042317074,7.31201643,2607.4,2607.3,2.019]
[1749042317366,1.3431,2607.4,2606.9,2.019]
[1749042317567,0.55,2607.6,2607.2,2.019]
[1749042317755,1.3575,2607.7,2607.2,2.019]
[1749042317946,0.55,2607.6,2607.2,2.019]
[1749042318346,8.66951643,2607.7,2606.7,1.0]
[1749042318347,0.55,2607.3,2606.7,1.0]
[1749042318566,0.55,2607.3,2607.2,2.019]
[1749042318867,0.55,2607.6,2607.2,2.2229]
[1749042319235,0.55,2608.0,2607.2,2.2229]
[1749042319430,7.31201643,2607.6,2607.3,8.972]
[1749042319833,0.55,2608.0,2607.3,8.972]
[1749042320157,0.55,2607.6,2607.3,8.972]
[1749042320360,1.352,2608.1,2607.3,9.89159]
[1749042320558,7.31201643,2608.0,2607.3,9.89159]
[1749042320857,0.35376227,2608.3,2607.5,10.0]
[1749042321052,7.31201643,2608.2,2607.6,6.502671]
[1749042321249,7.31201643,2608.2,2607.5,7.888668]
[1749042321451,0.35376227,2608.3,2607.7,1.3459]
[1749042321676,0.35376227,2608.3,2607.8,3.864729]
[1749042321851,0.35376227,2608.3,2607.8,3.514729]
[1749042322446,0.35376227,2608.3,2607.7,1.3459]
[1749042322652,7.31201643,2608.1,2607.7,1.3459]
[1749042322850,7.31201643,2608.1,2607.8,1.09172037]
[1749042323574,0.35376227,2608.3,2607.9,8.267]
[1749042323761,7.31201643,2608.2,2608.0,2.019]
[1749042323961,7.31201643,2608.2,2608.1,6.93]
[1749042326041,7.31201643,2608.2,2608.1,2.019]
[1749042327285,0.35376227,2608.3,2608.1,9.9606]
[1749042327658,0.35376227,2608.3,2608.1,1.0286]
[1749042327862,0.35376227,2608.3,2607.6,7.888668]
[1749042328055,0.35376227,2608.3,2607.8,10.0]
[1749042328256,0.35376227,2608.3,2607.9,10.0]
[1749042328499,0.35376227,2608.3,2608.1,10.0]
[1749042328646,0.35376227,2608.3,2607.2,8.55]
[1749042328647,0.35376227,2608.3,2608.2,7.888668]
[1749042328988,0.35376227,2608.3,2608.2,8.6775348]
[1749042329173,0.35376227,2608.3,2608.2,7.4800278]
[1749042329576,0.35376227,2608.3,2608.2,0.8751668]
[1749042329792,0.35376227,2608.3,2608.2,4.756301]
[1749042330553,0.35376227,2608.3,2608.2,12.756301]
[1749042331286,0.08957891,2608.3,2608.2,12.756301]
[1749042333875,0.08957891,2608.3,2608.2,16.5903628]
[1749042334279,0.04635706,2608.3,2608.2,17.1403628]
[1749042334583,0.02,2608.9,2608.8,7.888668]
[1749042334790,0.02,2608.9,2608.8,15.888668]
[1749042335347,0.02,2608.9,2608.8,19.721848]
[1749042335601,0.02,2608.9,2608.8,15.974968]